bitfinex/quotes_BTCUSD_20250813
["timestamp","ask_amount","ask_price","bid_price","bid_amount"]
[1755082259728,0.47718793,120230.0,120220.0,1.06246592]
[1755082259934,0.47718793,120230.0,120220.0,1.0450169]
[1755082260063,0.47718793,120230.0,120220.0,1.06246592]
[1755082261565,0.47718793,120230.0,120220.0,1.46890592]
[1755082261973,0.48035793,120230.0,120220.0,1.46890592]
[1755082262518,0.47503793,120230.0,120220.0,1.46890592]
[1755082263523,0.47503793,120230.0,120220.0,1.26170592]
[1755082265277,0.47717793,120230.0,120220.0,1.26170592]
[1755082267527,0.47717793,120230.0,120220.0,1.06246592]
[1755082269508,0.48034793,120230.0,120220.0,1.06246592]
[1755082271609,0.48034793,120230.0,120220.0,1.36526592]
[1755082273038,0.47503793,120230.0,120220.0,1.26477592]
[1755082273554,0.47503793,120230.0,120220.0,0.97252456]
[1755082273712,0.00317,120260.0,120250.0,0.11744902]
[1755082273918,0.54531,120260.0,120250.0,0.66630227]
[1755082274328,0.54531,120260.0,120250.0,0.69121127]
[1755082274527,0.54531,120260.0,120250.0,0.69317127]
[1755082275107,0.54531,120260.0,120250.0,0.69417127]
[1755082275764,0.54531,120260.0,120250.0,0.71203493]
[1755082275964,0.54531,120260.0,120250.0,0.69458591]
[1755082276137,0.54531,120260.0,120250.0,0.71203493]
[1755082276342,0.54214,120260.0,120250.0,0.71203493]
[1755082276819,0.54531,120260.0,120250.0,0.71203493]
[1755082277433,0.54214,120260.0,120250.0,1.03417127]
[1755082277656,0.54214,120260.0,120250.0,0.90725127]
[1755082277885,0.54531,120260.0,120250.0,1.03421127]
[1755082278274,0.54531,120260.0,120250.0,0.90725127]
[1755082278481,0.54214,120260.0,120250.0,1.03321127]
[1755082278716,0.54214,120260.0,120250.0,1.03521127]
[1755082279350,0.54214,120260.0,120250.0,0.90825127]
[1755082279555,0.54214,120260.0,120250.0,1.03517127]
[1755082279761,0.54531,120260.0,120250.0,1.03517127]
[1755082280389,0.54531,120260.0,120250.0,1.03817127]
[1755082280594,0.54531,120260.0,120250.0,1.03621127]
[1755082281485,0.54531,120260.0,120250.0,1.44253127]
[1755082281712,0.54531,120260.0,120250.0,1.33897127]
[1755082285817,0.54531,120260.0,120250.0,1.03621127]
[1755082287319,0.54531,120260.0,120250.0,0.95348802]
[1755082288229,0.54531,120260.0,120250.0,1.03621127]
[1755082289105,0.54531,120260.0,120250.0,1.03817127]
[1755082289314,0.54,120260.0,120250.0,0.91125127]
[1755082289522,0.54,120260.0,120250.0,1.03813127]
[1755082291301,0.54,120260.0,120250.0,0.91125127]
[1755082291506,0.54518,120260.0,120250.0,1.44441127]
[1755082293063,0.54,120260.0,120250.0,1.31753127]
[1755082293271,0.54,120260.0,120250.0,1.44754127]
[1755082293763,0.54,120260.0,120250.0,1.44441127]
[1755082294867,0.54,120260.0,120250.0,1.4694292]
[1755082295076,0.54,120260.0,120250.0,1.2623092]
[1755082295526,0.54198,120260.0,120250.0,1.1354292]
[1755082295742,0.54198,120260.0,120250.0,1.0631492]
[1755082295889,0.54518,120260.0,120250.0,1.0631492]
[1755082299396,0.54518,120260.0,120250.0,0.9362692]
[1755082299595,0.54198,120260.0,120250.0,1.0631492]
[1755082301513,0.54198,120260.0,120250.0,1.2389892]
[1755082301742,0.54198,120260.0,120250.0,1.3658692]
[1755082302815,0.54198,120260.0,120250.0,1.1354292]
[1755082303030,0.54198,120260.0,120250.0,1.2623092]
[1755082304322,0.54518,120260.0,120250.0,1.2623092]
[1755082306213,0.54518,120260.0,120250.0,1.0611892]
[1755082307793,0.54518,120260.0,120250.0,0.9343092]
[1755082308015,0.54518,120260.0,120250.0,1.0611492]
[1755082308413,0.54518,120260.0,120250.0,1.0632192]
[1755082310990,0.54518,120260.0,120250.0,1.03820127]
[1755082311581,0.54518,120260.0,120250.0,1.44448127]
[1755082316014,0.54,120260.0,120250.0,0.95095844]
[1755082316121,0.54,120260.0,120250.0,1.07779844]
[1755082316482,0.54,120260.0,120250.0,1.06232098]
[1755082316661,0.54,120260.0,120250.0,1.05732098]
[1755082316870,0.54,120260.0,120250.0,1.06532098]
[1755082317190,0.54,120260.0,120250.0,1.06132098]
[1755082317392,0.54,120260.0,120250.0,1.05732098]
[1755082317589,0.54,120260.0,120250.0,0.93448098]
[1755082317793,0.54,120260.0,120250.0,1.06532098]
[1755082318335,0.54,120260.0,120250.0,0.93848098]
[1755082318507,0.54,120260.0,120250.0,1.06532098]
[1755082318941,0.54,120260.0,120250.0,1.04120127]
[1755082321535,0.54,120260.0,120250.0,1.34392127]
[1755082321697,0.54,120260.0,120250.0,1.11352127]
[1755082321913,0.54,120260.0,120250.0,1.24036127]
[1755082322131,0.54,120260.0,120250.0,0.91436127]
[1755082322353,0.54,120260.0,120250.0,1.04120127]
[1755082326186,0.54,120260.0,120250.0,0.91436127]
[1755082326401,0.54,120260.0,120250.0,1.04120127]
[1755082329150,0.54,120260.0,120250.0,0.91436127]
[1755082329293,0.54,120260.0,120250.0,1.04116127]
[1755082329748,0.54202,120260.0,120250.0,0.91436127]
[1755082329910,0.545,120260.0,120250.0,0.91229127]
[1755082330115,0.545,120260.0,120250.0,1.06219665]
[1755082331458,0.545,120260.0,120250.0,1.47043665]
[1755082332070,0.545,120260.0,120250.0,1.36687665]
[1755082332948,0.545,120260.0,120250.0,1.26331665]
[1755082334825,0.545,120260.0,120250.0,1.06415665]
[1755082336952,0.54,120260.0,120250.0,0.94044665]
[1755082337163,0.54,120260.0,120250.0,1.08565839]
[1755082337363,0.54,120260.0,120250.0,0.94044665]
[1755082337850,0.54,120260.0,120250.0,1.06724665]
[1755082338056,0.54,120260.0,120250.0,0.94044665]
[1755082338279,0.54,120260.0,120250.0,0.96045006]
[1755082338495,0.54,120260.0,120250.0,1.08725006]
[1755082338662,0.54,120260.0,120250.0,1.06324665]
[1755082338904,0.54,120260.0,120250.0,1.06824665]
[1755082339108,0.54,120260.0,120250.0,1.06424665]
[1755082339267,0.54,120260.0,120250.0,1.06924665]
[1755082339617,0.54,120260.0,120250.0,1.09352986]
[1755082341493,0.54,120260.0,120250.0,1.49980986]
[1755082341908,0.54,120260.0,120250.0,1.47361448]
[1755082342120,0.54,120260.0,120250.0,1.37005448]
[1755082342355,0.54202,120260.0,120250.0,1.26649448]
[1755082342576,0.545,120260.0,120250.0,1.26453448]
[1755082343876,0.545,120260.0,120250.0,0.93857448]
[1755082344312,0.545,120260.0,120250.0,1.06537448]
[1755082344770,0.545,120260.0,120250.0,1.06733448]
[1755082345225,0.545,120260.0,120250.0,1.04988546]
[1755082345437,0.545,120260.0,120250.0,0.94053448]
[1755082345659,0.545,120260.0,120250.0,1.06733448]
[1755082345872,0.545,120260.0,120250.0,0.94053448]
[1755082346089,0.545,120260.0,120250.0,1.06733448]
[1755082348807,0.545,120260.0,120250.0,1.04988546]
[1755082351159,0.545,120260.0,120250.0,0.91625127]
[1755082351408,0.54202,120260.0,120250.0,1.04301127]
[1755082351602,0.54202,120260.0,120250.0,1.44929127]
[1755082351934,0.54,120260.0,120250.0,1.47549665]
[1755082353299,0.54,120260.0,120250.0,1.37193665]
[1755082353512,0.54,120260.0,120250.0,1.26837665]
[1755082353687,0.54,120260.0,120250.0,1.14161665]
[1755082354006,0.54,120260.0,120250.0,1.26837665]
[1755082354216,0.54,120260.0,120250.0,1.06921665]
[1755082355720,0.54,120260.0,120250.0,1.08655593]
[1755082355937,0.54,120260.0,120250.0,1.06921665]
[1755082356608,0.54,120260.0,120250.0,1.08655593]
[1755082356878,0.54,120260.0,120250.0,1.06921665]
[1755082357110,0.54,120260.0,120250.0,0.95979593]
[1755082357330,0.54,120260.0,120250.0,1.85915665]
[1755082357684,0.54,120260.0,120250.0,1.87649593]
[1755082358477,0.53004013,120260.0,120250.0,1.87649593]
[1755082360773,0.53004013,120260.0,120250.0,1.85915665]
[1755082361537,0.53004013,120260.0,120250.0,2.26543665]
[1755082362577,0.53004013,120260.0,120250.0,2.28087549]
[1755082363291,0.53004013,120260.0,120250.0,2.31526665]
[1755082364806,0.53004013,120260.0,120250.0,2.10814665]
[1755082366631,0.53004013,120260.0,120250.0,2.11658632]
[1755082366809,0.53004013,120260.0,120250.0,1.90898665]
[1755082367600,0.53004013,120260.0,120250.0,1.91742632]
[1755082367802,0.53004013,120260.0,120250.0,1.90898665]
[1755082370098,0.53004013,120260.0,120250.0,1.78222665]
[1755082370321,0.53004013,120260.0,120250.0,1.90894665]
[1755082371433,0.53004013,120260.0,120250.0,1.98131865]
[1755082371657,0.53523013,120260.0,120250.0,1.70857465]
[1755082372306,0.53206013,120260.0,120250.0,1.70857465]
[1755082372520,0.53206013,120260.0,120250.0,1.60501465]
[1755082373683,0.53523013,120260.0,120250.0,1.48858065]
[1755082373891,0.53523013,120260.0,120250.0,0.91429127]
[1755082374102,0.53523013,120260.0,120250.0,0.89684225]
[1755082374308,0.53523013,120260.0,120250.0,1.02356225]
[1755082374516,0.53523013,120260.0,120250.0,0.55684225]
[1755082374725,0.53523013,120260.0,120250.0,0.70101127]
[1755082374934,0.53523013,120260.0,120250.0,0.91429127]
[1755082375138,0.53523013,120260.0,120250.0,0.89684225]
[1755082375574,0.53523013,120260.0,120250.0,1.04101127]
[1755082378059,0.55882013,120260.0,120250.0,1.04101127]
[1755082378256,0.55882013,120260.0,120250.0,0.89684225]
[1755082378459,0.58382013,120260.0,120250.0,1.02356225]
[1755082378892,0.58382013,120260.0,120250.0,1.04101127]
[1755082379236,0.58382013,120260.0,120250.0,1.03601127]
[1755082379648,0.58382013,120260.0,120250.0,1.03901127]
[1755082380186,0.58382013,120260.0,120250.0,1.03401127]
[1755082380556,0.58382013,120260.0,120250.0,1.03701127]
[1755082381479,0.58382013,120260.0,120250.0,0.69780127]
[1755082381745,0.58382013,120260.0,120250.0,1.10408127]
[1755082382687,0.58382013,120260.0,120250.0,0.89696127]
[1755082383089,0.56023013,120260.0,120250.0,0.89696127]
[1755082383337,0.56023013,120260.0,120250.0,1.03043127]
[1755082387731,0.53523013,120260.0,120250.0,1.03043127]
[1755082387943,0.53523013,120260.0,120250.0,1.05353665]
[1755082388187,0.53523013,120260.0,120250.0,1.05569665]
[1755082389306,0.53523013,120260.0,120250.0,1.08107821]
[1755082389505,0.53523013,120260.0,120250.0,1.06362919]
[1755082391442,0.53523013,120260.0,120250.0,1.48735821]
[1755082391678,0.53523013,120260.0,120250.0,1.38379821]
[1755082393132,0.53523013,120260.0,120250.0,1.36634919]
[1755082393629,0.53523013,120260.0,120250.0,1.38379821]
[1755082395616,0.53523013,120260.0,120250.0,1.28023821]
[1755082395835,0.53004013,120260.0,120250.0,0.95435821]
[1755082396038,0.53004013,120260.0,120250.0,1.08430821]
[1755082399268,0.53004013,120260.0,120250.0,1.08107821]
[1755082401512,0.53004013,120260.0,120250.0,1.48735821]
[1755082401953,0.53004013,120260.0,120250.0,1.38379821]
[1755082402765,0.53004013,120260.0,120250.0,1.38702821]
[1755082404112,0.53004013,120260.0,120250.0,1.38379821]
[1755082405934,0.53004013,120260.0,120250.0,1.25485665]
[1755082406647,0.53004013,120260.0,120250.0,1.25808665]
[1755082407684,0.53004013,120260.0,120250.0,1.25485665]
[1755082407864,0.53004013,120260.0,120250.0,1.05569665]
[1755082408220,0.53218013,120260.0,120250.0,1.05569665]
[1755082408418,0.53525013,120260.0,120250.0,1.05569665]
[1755082411430,0.53525013,120260.0,120250.0,1.15925665]
[1755082411635,0.53525013,120260.0,120250.0,1.46197665]
[1755082411857,0.53525013,120260.0,120250.0,1.35841665]
[1755082413683,0.53525013,120260.0,120250.0,1.38387791]
[1755082414006,0.53004013,120260.0,120250.0,1.30013051]
[1755082414186,0.53004013,120260.0,120250.0,0.95750791]
[1755082414408,0.53004013,120260.0,120250.0,1.08422791]
[1755082414900,0.53004013,120260.0,120250.0,1.08122791]
[1755082415103,0.53004013,120260.0,120250.0,1.07822791]
[1755082416060,0.53004013,120260.0,120250.0,1.08222791]
[1755082416884,0.53004013,120260.0,120250.0,1.08622791]
[1755082417638,0.53004013,120260.0,120250.0,1.08222791]
[1755082417842,0.53004013,120260.0,120250.0,0.95550791]
[1755082418032,0.53004013,120260.0,120250.0,1.08622791]
[1755082418423,0.53004013,120260.0,120250.0,1.08222791]
[1755082418785,0.53004013,120260.0,120250.0,1.08622791]
[1755082419690,0.53004013,120260.0,120250.0,1.06877889]
[1755082420845,0.53004013,120260.0,120250.0,1.08622791]
[1755082421216,0.53004013,120260.0,120250.0,1.81599791]
[1755082421722,0.53004013,120260.0,120250.0,2.22227791]
[1755082423408,0.52174036,120260.0,120250.0,1.90598603]
[1755082423570,0.52174036,120260.0,120250.0,1.98909691]
[1755082423778,0.51344059,120260.0,120250.0,1.98909691]
[1755082424184,0.50514082,120260.0,120250.0,1.78993691]
[1755082424604,0.49684105,120260.0,120250.0,1.78993691]
[1755082425061,0.48854128,120260.0,120250.0,1.78993691]
[1755082425549,0.48024151,120260.0,120250.0,1.78993691]
[1755082426034,0.47194174,120260.0,120250.0,1.78993691]
[1755082426237,0.46364197,120260.0,120250.0,1.78993691]
[1755082426596,0.4553422,120260.0,120250.0,1.78993691]
[1755082427764,0.4553422,120260.0,120250.0,1.66006691]
[1755082427976,0.4553422,120260.0,120250.0,1.52972391]
[1755082428176,0.4553422,120260.0,120250.0,1.53279391]
[1755082428712,0.4553422,120260.0,120250.0,1.40611391]
[1755082428909,0.4553422,120260.0,120250.0,1.53279391]
[1755082431521,0.4553422,120260.0,120250.0,1.83551391]
[1755082432416,0.4553422,120260.0,120250.0,1.83244391]
[1755082432730,0.4553422,120260.0,120250.0,1.63410991]
[1755082433147,0.4553422,120260.0,120250.0,1.68393991]
[1755082434783,0.4553422,120260.0,120250.0,1.38121991]
[1755082435133,0.4553422,120260.0,120250.0,1.38428991]
[1755082437681,0.4553422,120260.0,120250.0,1.38121991]
[1755082437894,0.45509668,120260.0,120250.0,1.38121991]
[1755082441208,0.45509668,120260.0,120250.0,1.36482791]
[1755082441430,0.45720668,120260.0,120250.0,1.36482791]
[1755082441657,0.45720668,120260.0,120250.0,1.77106791]
[1755082442361,0.46044668,120260.0,120250.0,1.25899791]
[1755082442532,0.46044668,120260.0,120250.0,1.15339791]
[1755082442867,0.46044668,120260.0,120250.0,0.93117253]
[1755082443076,0.46044668,120260.0,120250.0,1.05781253]
[1755082443474,0.46044668,120260.0,120250.0,0.93117253]
[1755082443713,0.46044668,120260.0,120250.0,1.05781253]
[1755082443918,0.46044668,120260.0,120250.0,0.93117253]
[1755082444128,0.46044668,120260.0,120250.0,1.05781253]
[1755082444812,0.46044668,120260.0,120250.0,1.05984253]
[1755082445137,0.46044668,120260.0,120250.0,0.93117253]
[1755082445344,0.46044668,120260.0,120250.0,1.05781253]
[1755082447203,0.46044668,120260.0,120250.0,0.93117253]
[1755082447415,0.46044668,120260.0,120250.0,1.05781253]
[1755082447976,0.46044668,120260.0,120250.0,0.93117253]
[1755082448170,0.46044668,120260.0,120250.0,1.05984253]
[1755082448390,0.46044668,120260.0,120250.0,0.93320253]
[1755082448594,0.46044668,120260.0,120250.0,1.05984253]
[1755082450621,0.46044668,120260.0,120250.0,1.05884253]
[1755082451451,0.46044668,120260.0,120250.0,1.36152253]
[1755082451589,0.46044668,120260.0,120250.0,1.23488253]
[1755082451796,0.46044668,120260.0,120250.0,1.25796253]
[1755082451992,0.46044668,120260.0,120250.0,0.93220253]
[1755082452232,0.45720668,120260.0,120250.0,1.05884253]
[1755082452455,0.45720668,120260.0,120250.0,1.08439501]
[1755082452891,0.45720668,120260.0,120250.0,0.95775501]
[1755082453293,0.45720668,120260.0,120250.0,1.08439501]
[1755082453930,0.45720668,120260.0,120250.0,0.95775501]
[1755082454235,0.45720668,120260.0,120250.0,1.08439501]
[1755082454448,0.45720668,120260.0,120250.0,0.95775501]
[1755082454961,0.45720668,120260.0,120250.0,1.08439501]
[1755082455296,0.45720668,120260.0,120250.0,0.95775501]
[1755082455497,0.45720668,120260.0,120250.0,1.08439501]
[1755082456301,0.45720668,120260.0,120250.0,0.95775501]
[1755082456505,0.45720668,120260.0,120250.0,1.08439501]
[1755082456716,0.45720668,120260.0,120250.0,0.95775501]
[1755082457128,0.45720668,120260.0,120250.0,1.08439501]
[1755082457402,0.45720668,120260.0,120250.0,0.95775501]
[1755082457943,0.45720668,120260.0,120250.0,1.08439501]
[1755082458164,0.45720668,120260.0,120250.0,1.33648501]
[1755082458343,0.45720668,120260.0,120250.0,1.20984501]
[1755082458550,0.45720668,120260.0,120250.0,1.33648501]
[1755082458909,0.45720668,120260.0,120250.0,1.20984501]
[1755082459115,0.45720668,120260.0,120250.0,1.33648501]
[1755082459540,0.45720668,120260.0,120250.0,1.20984501]
[1755082460144,0.45720668,120260.0,120250.0,1.33644501]
[1755082460842,0.45720668,120260.0,120250.0,1.20984501]
[1755082461092,0.45720668,120260.0,120250.0,1.31098375]
[1755082461450,0.45720668,120260.0,120250.0,1.61366375]
[1755082461677,0.45720668,120260.0,120250.0,1.38350375]
[1755082461890,0.45720668,120260.0,120250.0,1.51010375]
[1755082462105,0.45720668,120260.0,120250.0,1.18438375]
[1755082462322,0.45720668,120260.0,120250.0,1.31098375]
[1755082462726,0.45509668,120260.0,120250.0,1.18438375]
[1755082462928,0.45509668,120260.0,120250.0,1.31098375]
[1755082463170,0.45509668,120260.0,120250.0,1.18438375]
[1755082463433,0.45509668,120260.0,120250.0,1.31098375]
[1755082463969,0.45509668,120260.0,120250.0,1.18438375]
[1755082464193,0.45509668,120260.0,120250.0,1.31098375]
[1755082464421,0.45509668,120260.0,120250.0,1.18438375]
[1755082465053,0.45509668,120260.0,120250.0,1.31098375]
[1755082465275,0.45509668,120260.0,120250.0,1.18438375]
[1755082465500,0.45509668,120260.0,120250.0,1.31098375]
[1755082465726,0.45509668,120260.0,120250.0,1.18438375]
[1755082466177,0.45509668,120260.0,120250.0,1.31098375]
[1755082466401,0.45509668,120260.0,120250.0,1.18438375]
[1755082466612,0.45509668,120260.0,120250.0,1.31098375]
[1755082466834,0.45509668,120260.0,120250.0,1.18438375]
[1755082467530,0.00054881,120270.0,120260.0,0.35744902]
[1755082467752,0.46054881,120270.0,120260.0,1.00141227]
[1755082467967,0.46589881,120270.0,120260.0,1.00141227]
[1755082468184,0.46589881,120270.0,120260.0,1.02493475]
[1755082468401,0.46589881,120270.0,120260.0,0.99938227]
[1755082469094,0.46589881,120270.0,120260.0,1.02428527]
[1755082469518,0.46589881,120270.0,120260.0,1.02828527]
[1755082470469,0.46589881,120270.0,120260.0,0.94046927]
[1755082471538,0.46589881,120270.0,120260.0,1.34662927]
[1755082472379,0.46589881,120270.0,120260.0,1.36407829]
[1755082475028,0.46589881,120270.0,120260.0,1.15703829]
[1755082476999,0.46589881,120270.0,120260.0,0.95791829]
[1755082479699,0.46589881,120270.0,120260.0,0.95787829]
[1755082480886,0.46589881,120270.0,120260.0,0.83131829]
[1755082481043,0.46589881,120270.0,120260.0,0.95807829]
[1755082481446,0.46589881,120270.0,120260.0,1.26071829]
[1755082483569,0.46589881,120270.0,120260.0,1.15719829]
[1755082487592,0.46589881,120270.0,120260.0,0.95807829]
[1755082491583,0.46589881,120270.0,120260.0,1.36423829]
[1755082493557,0.46589881,120270.0,120260.0,1.15719829]
[1755082495620,0.46589881,120270.0,120260.0,0.95807829]
[1755082498224,0.46589881,120270.0,120260.0,0.95787829]
[1755082498434,0.46589881,120270.0,120260.0,0.95993829]
[1755082501589,0.46589881,120270.0,120260.0,1.36617829]
[1755082504296,0.46589881,120270.0,120260.0,1.15905829]
[1755082504682,0.46265881,120270.0,120260.0,1.15905829]
[1755082506324,0.46265881,120270.0,120260.0,0.95993829]
[1755082508471,0.46575881,120270.0,120260.0,0.95993829]
[1755082509419,0.46575881,120270.0,120260.0,0.83337829]
[1755082509624,0.46575881,120270.0,120260.0,0.95993829]
[1755082511567,0.46575881,120270.0,120260.0,1.36609829]
[1755082513666,0.46575881,120270.0,120260.0,1.15905829]
[1755082513897,0.46575881,120270.0,120260.0,0.95993829]
[1755082514357,0.42575881,120270.0,120260.0,0.95993829]
[1755082514545,0.42575881,120270.0,120260.0,0.94248927]
[1755082515449,0.42575881,120270.0,120260.0,0.95993829]
[1755082517543,0.42265881,120270.0,120260.0,0.95993829]
[1755082517899,0.42265881,120270.0,120260.0,0.94248927]
[1755082518398,0.42265881,120270.0,120260.0,0.95993829]
[1755082521573,0.42265881,120270.0,120260.0,1.16305676]
[1755082521756,0.42265881,120270.0,120260.0,1.18609676]
[1755082523632,0.42265881,120270.0,120260.0,0.98697676]
[1755082531425,0.42265881,120270.0,120260.0,1.09049676]
[1755082531643,0.42265881,120270.0,120260.0,1.39313676]
[1755082533592,0.42563881,120270.0,120260.0,1.26257829]
[1755082535639,0.42563881,120270.0,120260.0,0.95993829]
[1755082536422,0.42563881,120270.0,120260.0,0.83131829]
[1755082536628,0.42563881,120270.0,120260.0,0.95787829]
[1755082536868,0.42563881,120270.0,120260.0,0.81386927]
[1755082537042,0.42563881,120270.0,120260.0,0.94042927]
[1755082537601,0.42563881,120270.0,120260.0,0.95787829]
[1755082541103,0.42563881,120270.0,120260.0,0.83131829]
[1755082541311,0.42563881,120270.0,120260.0,0.95787829]
[1755082541519,0.42563881,120270.0,120260.0,1.36415829]
[1755082542389,0.42563881,120270.0,120260.0,1.13403829]
[1755082542595,0.42563881,120270.0,120260.0,1.26059829]
[1755082542828,0.42563881,120270.0,120260.0,1.03047829]
[1755082543028,0.42563881,120270.0,120260.0,1.15703829]
[1755082544970,0.45063881,120270.0,120260.0,0.83131829]
[1755082545184,0.45063881,120270.0,120260.0,0.95787829]
[1755082545621,0.45063881,120270.0,120260.0,0.83131829]
[1755082545847,0.45063881,120270.0,120260.0,0.95787829]
[1755082546019,0.45063881,120270.0,120260.0,0.83131829]
[1755082546332,0.45063881,120270.0,120260.0,0.95387829]
[1755082546752,0.45063881,120270.0,120260.0,0.95687829]
[1755082547406,0.45063881,120270.0,120260.0,0.95287829]
[1755082547649,0.45063881,120270.0,120260.0,0.82631829]
[1755082547862,0.45063881,120270.0,120260.0,0.95587829]
[1755082549154,0.45063881,120270.0,120260.0,0.82931829]
[1755082549349,0.45063881,120270.0,120260.0,0.95587829]
[1755082551490,0.45063881,120270.0,120260.0,1.36215829]
[1755082552198,0.45063881,120270.0,120260.0,0.93287829]
[1755082552400,0.45063881,120270.0,120260.0,1.25859829]
[1755082553776,0.45063881,120270.0,120260.0,1.30208856]
[1755082554280,0.45063881,120270.0,120260.0,1.19852856]
[1755082554403,0.45063881,120270.0,120260.0,0.99932856]
[1755082556784,0.45063881,120270.0,120260.0,0.95583829]
[1755082561469,0.45063881,120270.0,120260.0,1.16295829]
[1755082561682,0.45063881,120270.0,120260.0,1.36211829]
[1755082562502,0.45063881,120270.0,120260.0,1.25855829]
[1755082564162,0.45063881,120270.0,120260.0,0.82931829]
[1755082564317,0.45063881,120270.0,120260.0,1.15499829]
[1755082565599,0.45063881,120270.0,120260.0,1.02847829]
[1755082565805,0.45063881,120270.0,120260.0,0.95583829]
[1755082567466,0.45063881,120270.0,120260.0,0.95789829]
[1755082568782,0.44765881,120270.0,120260.0,0.95789829]
[1755082571371,0.45063881,120270.0,120260.0,0.95789829]
[1755082571577,0.45063881,120270.0,120260.0,1.36417829]
[1755082572454,0.45063881,120270.0,120260.0,1.03053829]
[1755082572673,0.45063881,120270.0,120260.0,1.15705829]
[1755082573329,0.45063881,120270.0,120260.0,0.95789829]
[1755082575828,0.44765881,120270.0,120260.0,0.95789829]
[1755082581421,0.45063881,120270.0,120260.0,1.26061829]
[1755082585342,0.45063881,120270.0,120260.0,0.95789829]
[1755082590739,0.45063881,120270.0,120260.0,0.83137829]
[1755082591076,0.45063881,120270.0,120260.0,0.95785829]
[1755082591517,0.45063881,120270.0,120260.0,1.36413829]
[1755082592642,0.45063881,120270.0,120260.0,1.36207829]
[1755082593911,0.45063881,120270.0,120260.0,0.95579829]
[1755082595292,0.45063881,120270.0,120260.0,0.82931829]
[1755082595494,0.45063881,120270.0,120260.0,0.95579829]
[1755082597979,0.45063881,120270.0,120260.0,0.95787829]
[1755082598548,0.45063881,120270.0,120260.0,0.83139829]
[1755082598755,0.45063881,120270.0,120260.0,0.95787829]
[1755082601461,0.45063881,120270.0,120260.0,1.36415829]
[1755082602406,0.45063881,120270.0,120260.0,1.26059829]
[1755082602816,0.45063881,120270.0,120260.0,1.03055829]
[1755082603017,0.45063881,120270.0,120260.0,1.15703829]
[1755082604627,0.45063881,120270.0,120260.0,0.83139829]
[1755082604851,0.45063881,120270.0,120260.0,0.95787829]
[1755082605238,0.45063881,120270.0,120260.0,0.83139829]
[1755082605416,0.45063881,120270.0,120260.0,0.95787829]
[1755082606604,0.45063881,120270.0,120260.0,0.95783829]
[1755082609128,0.44765881,120270.0,120260.0,0.95783829]
[1755082611463,0.44765881,120270.0,120260.0,1.26055829]
[1755082613518,0.44765881,120270.0,120260.0,1.15699829]
[1755082615284,0.44765881,120270.0,120260.0,0.83139829]
[1755082615494,0.44765881,120270.0,120260.0,0.95783829]
[1755082619383,0.45063881,120270.0,120260.0,0.95783829]
[1755082621586,0.45063881,120270.0,120260.0,1.36411829]
[1755082625025,0.45063881,120270.0,120260.0,1.26055829]
[1755082626055,0.45063881,120270.0,120260.0,1.03055829]
[1755082626279,0.44765881,120270.0,120260.0,1.15695829]
[1755082627992,0.44765881,120270.0,120260.0,0.95779829]
[1755082628674,0.44554881,120270.0,120260.0,0.99135332]
[1755082628931,0.42054881,120270.0,120260.0,1.00800414]
[1755082629372,0.44554881,120270.0,120260.0,1.00800414]
[1755082629584,0.42054881,120270.0,120260.0,1.00800414]
[1755082629802,0.44554881,120270.0,120260.0,1.00800414]
[1755082630297,0.42054881,120270.0,120260.0,1.00800414]
[1755082630527,0.44554881,120270.0,120260.0,1.00800414]
[1755082630729,0.42054881,120270.0,120260.0,1.00800414]
[1755082631550,0.42054881,120270.0,120260.0,1.41428414]
[1755082632803,0.44554881,120270.0,120260.0,1.41428414]
[1755082634245,0.42054881,120270.0,120260.0,1.41428414]
[1755082634653,0.44554881,120270.0,120260.0,1.41428414]
[1755082635264,0.44554881,120270.0,120260.0,1.00800414]
[1755082636464,0.42054881,120270.0,120260.0,1.00800414]
[1755082637407,0.44554881,120270.0,120260.0,1.00800414]
[1755082638522,0.42054881,120270.0,120260.0,0.88160414]
[1755082638676,0.42054881,120270.0,120260.0,1.00800414]
[1755082641420,0.42054881,120270.0,120260.0,1.41428414]
[1755082642285,0.42054881,120270.0,120260.0,1.31072414]
[1755082643882,0.42054881,120270.0,120260.0,1.20716414]
[1755082646112,0.42054881,120270.0,120260.0,1.00800414]
[1755082651618,0.42054881,120270.0,120260.0,1.41428414]
[1755082652163,0.42054881,120270.0,120260.0,1.31072414]
[1755082652342,0.42054881,120270.0,120260.0,1.31068414]
[1755082652550,0.42054881,120270.0,120260.0,1.20712414]
[1755082654458,0.42054881,120270.0,120260.0,1.00796414]
[1755082657659,0.42054881,120270.0,120260.0,0.88160414]
[1755082657880,0.42054881,120270.0,120260.0,1.00792414]
[1755082661455,0.42054881,120270.0,120260.0,1.21504414]
[1755082661591,0.42054881,120270.0,120260.0,1.41420414]
[1755082663880,0.42054881,120270.0,120260.0,1.20708414]
[1755082665869,0.42054881,120270.0,120260.0,1.00792414]
[1755082670734,0.42054881,120270.0,120260.0,1.00497414]
[1755082671111,0.42261881,120270.0,120260.0,1.00497414]
[1755082671468,0.42261881,120270.0,120260.0,1.18137414]
[1755082671678,0.42261881,120270.0,120260.0,1.30765414]
[1755082672110,0.42261881,120270.0,120260.0,1.20409414]
[1755082672314,0.42261881,120270.0,120260.0,1.00493414]
[1755082673675,0.42261881,120270.0,120260.0,0.87865414]
[1755082673854,0.42261881,120270.0,120260.0,1.00493414]
[1755082674879,0.42261881,120270.0,120260.0,0.87865414]
[1755082675179,0.42054881,120270.0,120260.0,1.00493414]
[1755082676274,0.42054881,120270.0,120260.0,1.00803414]
[1755082676894,0.42054881,120270.0,120260.0,0.88175414]
[1755082677101,0.42054881,120270.0,120260.0,1.00803414]
[1755082679555,0.42054881,120270.0,120260.0,1.00493414]
[1755082680801,0.42054881,120270.0,120260.0,1.00789414]
[1755082681400,0.42054881,120270.0,120260.0,1.21501414]
[1755082681600,0.42054881,120270.0,120260.0,1.18433414]
[1755082681807,0.42054881,120270.0,120260.0,1.31061414]
[1755082682222,0.42054881,120270.0,120260.0,0.88161414]
[1755082682520,0.42054881,120270.0,120260.0,1.20705414]
[1755082682724,0.42054881,120270.0,120260.0,1.20405414]
[1755082683042,0.42054881,120270.0,120260.0,1.20505414]
[1755082683400,0.42054881,120270.0,120260.0,1.20905414]
[1755082684004,0.42054881,120270.0,120260.0,1.00989414]
[1755082686164,0.42054881,120270.0,120260.0,0.99952066]
[1755082686374,0.42054881,120270.0,120260.0,0.98793593]
[1755082691035,0.42054881,120270.0,120260.0,0.86165593]
[1755082691186,0.42054881,120270.0,120260.0,0.98789593]
[1755082691386,0.42054881,120270.0,120260.0,1.19501593]
[1755082691592,0.42054881,120270.0,120260.0,1.39413593]
[1755082694951,0.42054881,120270.0,120260.0,0.98789593]
[1755082695247,0.42054881,120270.0,120260.0,0.86165593]
[1755082695550,0.42054881,120270.0,120260.0,0.98785593]
[1755082699411,0.42054881,120270.0,120260.0,0.98489593]
[1755082701496,0.42054881,120270.0,120260.0,1.39113593]